bitfinex-derivatives/quotes_ETHF0:USTF0_20251226
["timestamp","ask_amount","ask_price","bid_price","bid_amount"]
[1766734748334,0.79198773,2972.7,2970.8,5.08243]
[1766734749644,0.79198773,2972.7,2970.8,0.16843]
[1766734749835,0.79198773,2972.7,2970.8,5.08143]
[1766734750234,0.79198773,2972.7,2970.8,0.16843]
[1766734751236,0.79198773,2972.3,2970.8,0.16843]
[1766734751744,0.79198773,2972.3,2970.1,0.16847]
[1766734751944,0.79198773,2972.3,2970.2,5.08147]
[1766734752143,0.79198773,2972.3,2970.3,0.16846]
[1766734753036,0.79198773,2972.3,2970.4,4.234]
[1766734753435,0.79198773,2972.3,2970.3,0.16846]
[1766734753641,0.79198773,2972.3,2970.5,4.913]
[1766734754836,0.79198773,2972.3,2970.5,4.912]
[1766734755542,0.16833,2972.6,2970.5,4.912]
[1766734755937,0.16833,2972.6,2970.5,5.08045]
[1766734756738,0.79198773,2972.4,2970.5,0.16845]
[1766734757152,0.79198773,2971.6,2970.0,1.53836521]
[1766734757540,0.79198773,2972.2,2970.0,0.1]
[1766734757736,0.79198773,2972.2,2970.0,0.89198773]
[1766734757942,0.79155507,2971.9,2970.4,0.79155507]
[1766734758143,0.79155507,2972.2,2970.7,0.79155507]
[1766734758346,0.79155507,2971.9,2970.4,0.79155507]
[1766734758846,0.79155507,2971.6,2970.3,4.911]
[1766734759547,0.79155507,2971.6,2970.1,0.79155507]
[1766734760050,0.79155507,2971.6,2970.0,5.011]
[1766734760247,0.79155507,2971.6,2970.2,0.79155507]
[1766734760440,0.79155507,2971.6,2970.1,0.79155507]
[1766734762353,0.16835,2972.3,2970.1,0.79155507]
[1766734762560,0.00504847,2971.5,2970.9,0.00504847]
[1766734764249,4.847e-05,2971.5,2970.9,0.00504847]
[1766734764450,0.79155507,2972.2,2970.9,0.00504847]
[1766734765151,0.79155507,2971.9,2970.9,0.00504847]
[1766734765352,0.00504847,2971.7,2970.9,0.00504847]
[1766734767962,0.79155507,2971.6,2970.9,0.00504847]
[1766734770361,0.79155507,2971.6,2970.1,0.00329885]
[1766734771257,0.79155507,2971.6,2970.6,0.00504847]
[1766734772661,0.79155507,2971.0,2970.1,0.00329885]
[1766734773653,0.79155507,2971.3,2970.1,0.00329885]
[1766734774366,0.17343847,2971.7,2970.1,0.00329885]
[1766734774564,0.79155507,2971.3,2970.1,0.00329885]
[1766734778169,0.79155507,2971.3,2969.4,2.96753831]
[1766734778170,0.79155507,2970.2,2969.0,0.20590295]
[1766734778368,4.847e-05,2969.9,2969.3,0.79659682]
[1766734778570,4.847e-05,2969.9,2969.3,0.00504175]
[1766734778773,0.79155507,2970.7,2969.4,0.79155507]
[1766734778959,0.79155507,2970.6,2969.3,0.00504175]
[1766734779160,0.00390207,2970.6,2969.3,0.00883585]
[1766734779362,0.79155507,2970.4,2969.3,0.00883585]
[1766734779766,0.00504847,2970.1,2969.3,0.00883585]
[1766734780470,0.79660354,2970.1,2969.3,0.00883585]
[1766734780769,0.00504847,2970.1,2969.3,0.00883585]
[1766734782666,0.79155507,2969.5,2969.0,0.20590295]
[1766734782861,0.79155507,2969.8,2969.0,0.20590295]
[1766734783873,0.79155507,2969.6,2969.0,0.20919148]
[1766734784070,0.79155507,2969.3,2967.6,0.79155507]
[1766734784264,0.79155507,2968.7,2967.3,0.2652291]
[1766734784464,0.00504847,2968.7,2967.3,0.79155507]
[1766734784665,0.00504847,2968.7,2967.1,0.16864]
[1766734784666,0.00504847,2968.7,2967.6,0.79155507]
[1766734784966,0.79660354,2968.7,2967.1,0.16864]
[1766734785176,0.00504847,2968.7,2967.1,0.17158151]
[1766734785867,0.79155507,2969.8,2968.4,0.79155507]
[1766734786266,0.79155507,2969.6,2968.2,0.79155507]
[1766734786573,0.79155507,2969.4,2968.0,0.79155507]
[1766734786767,0.79155507,2969.5,2968.0,0.79155507]
[1766734786967,0.00504847,2969.0,2968.5,0.00504847]
[1766734787759,40.8,2970.2,2968.6,0.79155507]
[1766734788072,0.79155507,2969.7,2968.5,0.00504847]
[1766734788673,0.16846,2970.4,2968.5,0.00504847]
[1766734788674,0.00504847,2969.4,2968.5,0.00504847]
[1766734791875,0.00504847,2969.4,2968.5,0.79660354]
[1766734792766,0.16842,2971.1,2968.8,0.79155507]
[1766734792961,0.79155507,2970.0,2968.5,0.00504847]
[1766734793178,0.79155507,2969.8,2968.5,0.00504847]
[1766734793573,0.79155507,2970.1,2968.5,0.00504847]
[1766734793772,0.79155507,2970.2,2968.6,0.79155507]
[1766734793975,0.00504847,2969.6,2968.6,0.79155507]
[1766734794277,0.00504847,2969.6,2968.5,0.00504847]
[1766734794474,0.00504847,2969.6,2968.9,0.79155507]
[1766734794777,0.79545714,2970.6,2969.2,0.79155507]
[1766734795077,0.79155507,2970.5,2969.2,0.79420692]
[1766734795263,0.79155507,2970.5,2969.2,0.00265185]
[1766734795577,0.00504847,2970.1,2969.2,0.00265185]
[1766734796476,0.79155507,2969.9,2969.2,0.00265185]
[1766734796675,0.00504847,2970.1,2969.2,0.00265185]
[1766734796975,0.79155507,2969.7,2968.5,0.00504847]
[1766734797167,0.00504847,2970.1,2968.5,0.00504847]
[1766734797168,0.00504847,2970.1,2968.6,0.17120185]
[1766734797468,0.00504847,2970.1,2968.8,0.17120185]
[1766734797870,0.00504847,2970.1,2968.8,0.17483546]
[1766734798476,0.00504847,2970.1,2968.8,0.96639053]
[1766734798771,0.00504847,2970.1,2969.1,0.79155507]
[1766734799972,0.00390207,2970.6,2968.9,0.16854]
[1766734800272,0.00390207,2970.6,2968.8,0.17483546]
[1766734800674,0.00390207,2970.6,2968.9,1.14074243]
[1766734800871,0.06247,2970.9,2968.9,3.73100597]
[1766734801075,0.00504847,2970.2,2969.0,0.33974185]
[1766734801574,0.06247,2970.9,2969.0,0.17120185]
[1766734801776,0.06664776,2970.9,2969.0,0.17120185]
[1766734802369,0.06664776,2970.9,2969.2,0.16852]
[1766734802579,0.00331715,2970.3,2969.2,0.16852]
[1766734803373,0.06664776,2970.9,2969.0,0.17120185]
[1766734804173,0.06664776,2970.9,2969.5,0.16851]
[1766734805475,0.16837,2972.0,2970.0,0.17120185]
[1766734805674,0.16832,2972.8,2970.7,0.00504847]
[1766734805978,1.14074243,2973.1,2970.7,0.00504847]
[1766734806473,1.14074243,2972.5,2970.7,0.00504847]
[1766734809873,5.692,2972.7,2970.8,0.17120185]
[1766734810181,0.00354649,2973.1,2970.8,0.17120185]
[1766734810385,0.00354649,2973.1,2970.7,0.00504847]
[1766734810386,40.80354649,2973.1,2971.0,0.17120185]
[1766734810588,1.14074243,2972.9,2971.0,0.17377085]
[1766734811778,1.14074243,2972.9,2971.3,0.17120185]
[1766734812183,1.14074243,2972.9,2971.0,0.002569]
[1766734812479,1.30906243,2972.9,2971.0,0.002569]
[1766734812684,1.14074243,2972.4,2971.0,0.002569]
[1766734813078,1.30906243,2972.9,2971.2,0.17120185]
[1766734813278,1.30906243,2972.9,2971.0,0.002569]
[1766734813784,1.14074243,2972.4,2971.0,0.002569]
[1766734814187,1.14074243,2972.4,2971.1,0.17120185]
[1766734814788,1.14074243,2972.4,2971.0,0.002569]
[1766734815090,1.14074243,2972.4,2971.0,0.17377085]
[1766734815681,1.14074243,2972.4,2970.7,0.00504847]
[1766734816687,1.14074243,2972.4,2970.7,0.00837146]
[1766734816884,5.723,2972.3,2970.7,0.00837146]
[1766734817083,1.14074243,2972.2,2970.7,0.00837146]
[1766734820090,5.723,2972.3,2970.7,0.00837146]
[1766734821286,5.89135,2972.3,2970.7,0.00837146]
[1766734825187,0.19736,2972.2,2970.7,0.00837146]
[1766734825392,0.16836,2972.1,2970.7,0.00837146]
[1766734825691,0.16837,2972.0,2970.7,0.00837146]
[1766734828691,40.8,2972.8,2970.7,0.00837146]
[1766734828692,5.714,2972.5,2970.7,0.00837146]
[1766734829190,5.88234,2972.5,2970.7,0.00837146]
[1766734829381,1.07317644,2972.4,2970.7,0.00837146]
[1766734829588,0.16834,2972.4,2970.7,0.00837146]
[1766734834297,0.90587546,2972.3,2970.7,0.00837146]
[1766734834599,0.16834,2972.4,2970.7,0.00837146]
[1766734834896,0.90587102,2972.3,2970.7,0.00837146]
[1766734835096,0.16835,2972.3,2970.7,0.00837146]
[1766734838691,0.19735,2972.3,2970.7,0.00837146]
[1766734840406,0.90641142,2972.2,2970.7,0.00837146]
[1766734840700,0.19735,2972.3,2970.7,0.00837146]
[1766734841000,0.9064127,2972.2,2970.7,0.00837146]
[1766734841202,0.16836,2972.2,2970.7,0.00837146]
[1766734842404,0.90738844,2972.1,2970.7,0.00837146]
[1766734842602,5.822,2972.0,2970.7,0.00837146]
[1766734844001,0.79174363,2971.9,2970.7,0.00837146]
[1766734844898,0.79174363,2971.9,2968.7,23.572]
[1766734844899,0.79174363,2971.1,2969.8,2.96753831]
[1766734845108,0.79174363,2971.1,2969.7,2.96753831]
[1766734845993,0.00504847,2970.7,2970.1,0.00504847]
[1766734846190,0.00742193,2970.7,2970.1,0.00504847]
[1766734847393,0.79916556,2970.7,2969.7,0.00362527]
[1766734849401,0.79916556,2970.7,2969.9,0.00504847]
[1766734849601,0.79916556,2970.7,2969.7,0.00362527]
[1766734850208,0.79916556,2970.7,2969.0,0.16853]
[1766734850697,0.79916556,2970.7,2969.6,0.00504847]
[1766734851209,0.79916556,2970.7,2968.5,8.52757681]
[1766734851409,0.79916556,2970.7,2968.5,5.5600385]
[1766734852207,0.79916556,2970.7,2969.3,0.00504847]
[1766734852403,0.79174363,2970.4,2969.3,0.00504847]
[1766734853512,0.79174363,2970.3,2969.3,0.00504847]
[1766734854008,0.79174363,2970.3,2968.5,0.0034531]
[1766734855006,0.79174363,2970.3,2969.1,0.00336562]
[1766734855210,0.79174363,2969.9,2968.5,0.0034531]
[1766734857510,0.16846,2970.3,2968.5,0.0034531]
[1766734857511,0.79174363,2970.0,2968.5,0.0034531]
[1766734860004,0.00742193,2970.7,2968.5,0.0034531]
[1766734860210,0.79174363,2970.6,2968.5,0.0034531]
[1766734860410,0.79174363,2970.6,2968.5,0.1720131]
[1766734860411,6.60274363,2970.6,2968.5,0.1720131]
[1766734861114,0.79174363,2970.2,2968.5,0.1720131]
[1766734861514,0.78840747,2970.2,2968.5,0.1720131]
[1766734863318,0.79174363,2969.8,2968.5,0.0034531]
[1766734864813,0.78838708,2969.8,2968.5,0.0034531]
[1766734865514,0.79174363,2970.0,2968.5,0.0034531]
[1766734865715,0.79174363,2969.5,2968.5,0.0034531]
[1766734866718,0.79174363,2969.5,2967.6,10.143]
[1766734867013,0.00504847,2968.8,2967.5,0.16862]
[1766734867626,0.00504847,2968.8,2967.5,0.17165806]
[1766734868117,0.00504847,2968.8,2967.5,0.00303806]
[1766734870616,0.00504847,2968.8,2967.5,3.806e-05]
[1766734872422,1.29469948,2970.9,2967.6,0.16861]
[1766734872620,1.29469948,2970.9,2967.5,3.806e-05]
[1766734872621,0.17081346,2970.7,2967.5,3.806e-05]
[1766734872918,0.00237346,2970.7,2968.4,0.16857]
[1766734873524,0.00504847,2969.8,2969.3,0.00504847]
[1766734874313,0.00504847,2969.8,2967.6,0.16861]
[1766734878624,0.00504847,2969.8,2967.5,3.806e-05]
[1766734878822,0.00504847,2969.8,2967.9,0.1686]
[1766734879424,0.00504847,2969.8,2967.6,6.34714202]
[1766734879622,0.00504847,2969.8,2968.1,0.16859]
[1766734886825,1.14669206,2969.8,2968.1,0.16859]
[1766734889534,1.14669206,2969.8,2967.5,5.04965806]
[1766734889738,0.029,2969.7,2967.5,0.16865806]
[1766734893333,1.17569206,2969.8,2967.5,0.16865806]
[1766734893936,1.14164359,2969.3,2967.5,3.806e-05]
[1766734895245,0.90373547,2969.2,2967.5,3.806e-05]
[1766734895542,0.90373547,2969.1,2967.5,3.806e-05]
[1766734895740,1.14164359,2969.3,2967.5,3.806e-05]
[1766734895937,1.14164359,2968.8,2967.5,3.806e-05]
[1766734900139,0.16854,2969.0,2967.5,3.806e-05]
[1766734900844,5.785,2969.1,2967.5,3.806e-05]
[1766734902047,1.14164359,2969.3,2967.5,3.806e-05]
[1766734902439,0.16851,2969.5,2967.5,3.806e-05]
[1766734904647,1.14669206,2969.8,2967.5,0.16865806]
[1766734904849,1.14669206,2969.8,2967.5,3.806e-05]
[1766734905050,1.14669206,2969.8,2967.6,0.16861]
[1766734906361,0.1685,2969.7,2967.6,0.16861]
[1766734906558,0.1685,2969.6,2967.6,0.16861]
[1766734907163,1.14164359,2969.3,2967.5,3.806e-05]
[1766734908060,0.79331915,2968.5,2967.5,3.806e-05]
[1766734908256,0.00504847,2968.3,2967.5,3.806e-05]
[1766734910661,4.847e-05,2968.3,2967.5,3.806e-05]
[1766734911765,4.847e-05,2968.3,2967.6,0.005]
[1766734912259,0.029,2969.2,2967.6,0.005]
[1766734912465,1.142464,2969.6,2967.6,0.005]
[1766734913162,0.00504847,2968.9,2967.6,0.005]
[1766734930078,0.79340113,2968.3,2967.6,0.005]
[1766734930880,0.79340113,2968.2,2967.6,0.005]
[1766734934583,0.79340113,2968.2,2967.5,3.806e-05]
[1766734937586,0.17358847,2968.9,2967.5,3.806e-05]
[1766734937774,0.79340113,2968.2,2967.5,3.806e-05]
[1766734941091,0.17358847,2968.9,2967.5,3.806e-05]
[1766734941393,0.79340113,2968.2,2967.5,3.806e-05]
[1766734942890,0.79340113,2968.4,2967.5,3.806e-05]
[1766734943191,0.79340113,2968.2,2967.5,3.806e-05]
[1766734943892,0.17358847,2968.9,2967.5,3.806e-05]
[1766734944095,0.79346569,2968.6,2967.5,3.806e-05]
[1766734954808,0.99605416,2968.9,2967.5,3.806e-05]
[1766734961900,0.82751416,2968.9,2967.5,3.806e-05]
[1766734962715,0.03404847,2968.9,2967.5,3.806e-05]
[1766734964612,0.00504847,2968.9,2967.5,3.806e-05]
[1766734969818,0.00504847,2968.9,2967.6,0.16862]
[1766734970821,0.00401704,2969.6,2968.0,0.16859]
[1766734971819,0.00504847,2969.1,2968.5,0.00504847]
[1766734972007,0.00401704,2969.6,2968.5,0.00504847]
[1766734973120,0.00504847,2969.3,2968.5,0.00504847]
[1766734980318,0.00401704,2969.6,2968.5,0.00504847]
[1766734981327,0.00504847,2969.3,2968.5,0.00504847]
[1766734992932,0.00504847,2969.3,2967.5,1.43954479]
[1766734993732,0.00504847,2969.3,2967.5,3.806e-05]
[1766734993940,0.00504847,2969.3,2968.1,0.00504847]
[1766734994742,0.16853,2969.2,2967.5,3.806e-05]
[1766734994943,0.16853,2969.1,2967.5,3.806e-05]
[1766734995942,0.16853,2969.1,2968.0,0.00504847]
[1766734996244,0.16853,2969.1,2967.5,3.806e-05]
[1766734996638,0.79346569,2969.0,2967.5,3.806e-05]
[1766734997546,0.16855,2968.9,2967.5,3.806e-05]
[1766735002450,40.8,2968.8,2967.5,3.806e-05]
[1766735003951,0.7934002,2968.6,2967.5,3.806e-05]
[1766735004151,40.8,2968.8,2967.5,3.806e-05]
[1766735005052,0.7934002,2968.7,2967.5,3.806e-05]
[1766735007647,0.7934002,2968.5,2967.5,3.806e-05]
[1766735011260,0.7934002,2967.9,2966.4,5.30347693]
[1766735011560,0.00504847,2967.4,2966.6,0.7934002]
[1766735011761,0.00504847,2967.4,2966.8,0.7934002]
[1766735011947,0.00504847,2967.4,2966.6,0.7934002]
[1766735012358,0.0090935,2967.4,2966.6,0.79590797]
[1766735012656,0.0090935,2967.4,2966.6,0.00250777]
[1766735014260,0.16859,2968.2,2966.9,0.7934002]
[1766735014661,0.9619902,2968.2,2966.9,0.7934002]
[1766735015361,0.00504847,2967.8,2967.3,0.00504847]
[1766735015855,0.00504847,2967.8,2966.9,0.7934002]
[1766735016056,0.00504847,2967.8,2966.7,0.7934002]
[1766735017261,0.00504847,2967.8,2966.9,0.7934002]
[1766735017458,0.00504847,2967.8,2966.6,0.00250777]
[1766735017662,0.00504847,2967.8,2966.7,0.7934002]
[1766735018565,0.00504847,2967.8,2966.9,0.7934002]
[1766735023068,0.00504847,2967.8,2967.0,0.7934002]
[1766735023567,0.00296771,2968.2,2967.3,0.7934002]
[1766735023862,0.00296771,2968.2,2967.0,0.7934002]
[1766735024473,0.00296771,2968.2,2966.6,0.17117777]
[1766735024769,0.00296771,2968.2,2967.3,0.00504847]
[1766735024770,0.00504847,2967.9,2967.3,0.00504847]
[1766735030673,0.00504847,2967.9,2967.3,0.79844867]
[1766735031073,0.00296771,2968.2,2967.3,0.79844867]
[1766735032168,0.00504847,2968.0,2967.3,0.79844867]
[1766735032770,0.00504847,2968.0,2967.3,0.00504847]
[1766735036479,0.00504847,2968.0,2967.3,0.79844867]
[1766735036676,0.00504847,2968.0,2967.3,0.00504847]
[1766735045582,0.00504847,2968.0,2967.3,0.79844867]
[1766735048182,0.00296771,2968.2,2967.3,0.79844867]
[1766735049276,0.00504847,2968.0,2967.3,0.79844867]
[1766735050179,0.00504847,2968.0,2967.3,0.00504847]
[1766735052886,0.00296771,2968.2,2967.3,0.00504847]
[1766735053678,0.00504847,2968.0,2967.3,0.00504847]
[1766735060390,0.00296771,2968.2,2967.3,0.79844867]
[1766735060592,0.00296771,2968.2,2967.6,0.7934002]
[1766735060886,0.029,2968.8,2967.6,0.7934002]
[1766735061089,40.8,2969.0,2967.6,0.7934002]
[1766735061388,0.00504847,2968.6,2967.3,0.79844867]
[1766735061782,0.00876609,2968.6,2967.3,0.79844867]
[1766735063189,0.00876609,2968.6,2967.3,0.00504847]
[1766735063388,0.00876609,2968.6,2967.5,0.7934002]
[1766735065890,0.00876609,2968.6,2967.3,0.00504847]
[1766735077998,5.838,2968.5,2967.3,0.00504847]
[1766735089106,6.00657,2968.5,2967.3,0.00504847]
[1766735090210,6.79992276,2968.5,2967.3,0.00504847]
[1766735090609,6.82892276,2968.5,2967.3,0.00504847]
[1766735090804,6.82892276,2968.5,2966.6,0.17117777]
[1766735090805,6.66035276,2968.5,2966.6,0.00250777]
[1766735091004,0.16858,2968.3,2966.6,0.00250777]
[1766735091307,0.79335276,2967.7,2966.6,0.00250777]
[1766735091506,5.948,2967.6,2965.5,0.17873]
[1766735091810,0.00504847,2966.8,2966.3,0.00504847]
[1766735092103,0.00504847,2966.8,2965.5,0.01]
[1766735092501,0.00504847,2966.8,2965.5,0.01254549]
[1766735093102,0.00504847,2966.8,2965.9,0.00505706]
[1766735095205,0.00504847,2966.8,2965.5,0.01254549]
[1766735096315,5.977,2967.5,2965.9,0.00505706]
[1766735096712,40.8,2967.4,2965.9,0.00505706]
[1766735096911,5.977,2967.5,2965.9,0.00505706]
[1766735097416,0.00505706,2967.0,2965.9,0.00505706]
[1766735098709,0.00505706,2967.0,2966.0,0.79335276]
[1766735098915,0.00505706,2967.0,2965.9,0.00505706]
[1766735100417,0.16858,2968.3,2966.5,0.79335276]
[1766735100618,5.985,2968.2,2966.1,0.79335276]
[1766735100821,46.785,2968.2,2966.1,0.79335276]
[1766735101117,0.16858,2968.3,2966.2,0.1687]
[1766735101321,0.16858,2968.3,2966.1,0.79335276]
[1766735101322,0.00505706,2967.5,2966.8,0.79335276]
[1766735101506,1.825,2968.3,2966.8,0.79335276]
[1766735101918,1.825,2968.3,2966.4,0.16868]
[1766735102118,1.825,2968.3,2966.5,0.79335276]
[1766735102319,0.16855,2968.8,2966.5,0.79335276]
[1766735102320,5.99,2968.4,2966.5,0.79335276]
[1766735102522,0.00505706,2967.7,2966.5,0.79335276]
[1766735105320,0.00505706,2967.7,2966.5,2.28636824]
[1766735106618,6.16027762,2968.6,2966.9,0.79335276]
[1766735107617,0.00332862,2968.0,2967.5,0.00505706]
[1766735110023,6.16027762,2968.6,2967.5,0.00505706]
[1766735110623,0.17227762,2968.6,2967.5,0.00505706]
[1766735110827,6.19027762,2968.6,2967.5,0.00505706]
[1766735112925,6.02171762,2968.6,2967.5,0.00505706]
[1766735113626,0.00371762,2968.6,2967.5,0.00505706]
[1766735128036,0.00371762,2968.6,2967.6,0.79316754]
[1766735128338,0.00371762,2968.6,2967.6,0.79655592]
[1766735129843,6.85216754,2969.6,2968.0,0.79316754]
[1766735130032,0.79316754,2969.3,2968.0,0.79316754]
[1766735130532,0.79316754,2969.3,2967.6,0.00338838]
[1766735130533,0.79316754,2969.3,2967.7,0.79316754]
[1766735130932,0.79685616,2969.3,2967.7,0.79316754]
[1766735131438,0.79316754,2969.0,2967.6,0.00338838]
[1766735131637,0.79316754,2968.7,2967.6,0.00338838]
[1766735132043,0.79316754,2968.4,2967.6,0.00338838]
[1766735132839,0.79316754,2968.4,2967.5,0.00505706]
[1766735133045,0.79316754,2968.1,2966.7,0.16867]
[1766735133643,0.79316754,2968.1,2966.5,0.79316754]
[1766735134049,0.79316754,2968.1,2967.0,0.00505706]
[1766735138152,6.087,2968.0,2967.0,0.00505706]
[1766735140055,0.79316754,2967.8,2966.5,0.00271652]
[1766735140854,6.109,2967.7,2966.5,0.00271652]
[1766735141046,6.109,2967.7,2966.8,0.00505706]
[1766735141652,0.96176754,2967.9,2966.8,0.00505706]
[1766735141850,6.118,2967.8,2966.8,0.00505706]
[1766735143758,0.96176754,2967.9,2966.8,0.00505706]
[1766735143950,6.134,2967.8,2966.8,0.00505706]
[1766735154465,0.96176754,2967.9,2966.8,0.00505706]
[1766735154661,6.227,2967.7,2966.8,0.00505706]
[1766735154860,6.23,2967.6,2966.8,0.00505706]
[1766735158060,0.00505706,2968.2,2967.2,0.79316754]
[1766735159065,0.00505706,2968.2,2966.8,0.00505706]
[1766735159268,0.00505706,2968.2,2966.9,0.79316754]
[1766735161764,0.00505706,2968.2,2966.8,0.00505706]
[1766735161974,0.79316754,2967.9,2966.8,0.00505706]
[1766735162171,0.79316754,2967.6,2966.8,0.00505706]
[1766735162667,0.79316754,2967.6,2966.5,0.00271652]
[1766735162668,7.04816754,2967.7,2966.5,0.00271652]
[1766735163062,6.255,2967.7,2966.5,0.00271652]
[1766735163258,7.04816754,2967.7,2966.5,0.00271652]
[1766735163663,7.04816754,2967.7,2966.8,0.00505706]
[1766735169872,6.255,2967.7,2966.8,0.00505706]
[1766735171375,6.252,2967.6,2966.8,0.00505706]
[1766735171573,0.1686,2967.9,2966.8,0.00505706]
[1766735171875,6.252,2967.8,2966.8,0.00505706]
[1766735172274,7.04516754,2967.8,2966.8,0.00505706]
[1766735172681,6.252,2967.8,2966.8,0.00505706]
[1766735175686,0.79316754,2967.2,2965.7,0.79316754]
[1766735175883,7.04416754,2967.2,2965.7,0.79316754]
[1766735176682,7.0475351,2967.2,2966.2,0.00505706]
[1766735177679,6.25436756,2967.2,2966.2,0.00505706]
[1766735178280,0.00336756,2967.2,2966.2,0.00505706]
[1766735178480,6.26336756,2967.2,2966.2,0.7982246]
[1766735179184,6.26336756,2967.2,2966.2,0.00505706]
[1766735180586,6.26336756,2967.2,2964.5,0.10857514]
[1766735180587,3.373,2967.1,2964.5,0.10857514]
[1766735180781,12.26336756,2967.2,2962.8,0.16889]
[1766735180782,0.79316754,2965.1,2962.8,0.16889]
[1766735181082,0.16874,2965.5,2962.8,0.16889]
[1766735181083,1.327,2965.0,2964.0,0.79316754]
[1766735181277,6.278,2964.9,2964.3,0.79316754]
[1766735181482,7.9946188,2965.5,2964.3,0.79316754]
[1766735181685,0.00505706,2965.2,2964.6,0.00505706]
[1766735182189,6.279,2965.1,2964.6,0.00505706]
[1766735184282,6.285,2965.0,2964.6,0.00505706]
[1766735184484,6.285,2965.0,2964.9,1.99133831]
[1766735184691,6.285,2965.0,2963.3,1.14489063]
[1766735185194,6.285,2965.0,2963.3,2.35619102]
[1766735185387,6.286,2965.0,2963.3,2.52505102]
[1766735185688,0.00505706,2965.2,2963.9,0.00337138]
[1766735185890,6.285,2965.1,2963.9,0.00337138]
[1766735186587,1.14489063,2965.0,2963.9,0.00337138]
[1766735186788,7.74901294,2965.1,2963.9,0.00337138]
[1766735186989,7.74901294,2965.1,2963.3,0.00249965]
[1766735186990,6.285,2965.1,2963.3,0.00249965]
[1766735188290,6.284,2965.0,2963.3,0.00249965]
[1766735188695,6.284,2964.9,2963.3,0.00249965]
[1766735189591,1.46902187,2965.1,2963.3,0.00249965]
[1766735189793,6.283,2965.0,2963.3,0.00249965]
[1766735190694,1.46902187,2965.1,2963.3,0.00249965]
[1766735190896,4.015,2965.0,2963.3,0.00249965]
[1766735191197,6.282,2964.9,2963.3,0.00249965]
[1766735192085,1.46902187,2965.1,2963.3,0.00249965]
[1766735192287,6.282,2965.0,2963.3,0.00249965]
[1766735195191,1.45188007,2965.1,2963.3,0.00249965]
[1766735195388,6.286,2965.0,2963.3,0.00249965]
[1766735196397,1.45188007,2965.1,2963.3,0.00249965]
[1766735196697,3.91,2965.0,2963.4,0.16885]
[1766735197289,6.292,2964.9,2963.4,0.16885]
[1766735197489,6.291,2964.9,2963.4,0.16885]
[1766735199598,1.45188007,2965.1,2963.5,0.16885]
[1766735199599,7.74188007,2965.1,2963.5,0.16885]
[1766735199794,7.74188007,2965.1,2963.3,0.00249965]
[1766735200000,6.29,2965.1,2963.3,0.00249965]
[1766735201696,6.29305706,2965.2,2963.3,0.00249965]
[1766735203091,0.00505706,2965.2,2963.3,0.00249965]
[1766735203292,6.286,2965.1,2963.3,0.00249965]
[1766735203689,0.00505706,2965.2,2963.3,0.00249965]
[1766735203893,6.286,2965.1,2963.3,0.00249965]
[1766735205501,0.00505706,2965.2,2963.4,0.16885]
[1766735205696,6.284,2965.1,2963.4,0.16885]
[1766735206098,0.00505706,2965.2,2963.4,0.16885]
[1766735206300,6.28805706,2965.2,2963.4,0.16885]
[1766735208904,0.00505706,2965.2,2963.4,0.16885]
[1766735209205,6.281,2965.1,2963.4,0.16885]
[1766735210101,6.279,2965.1,2963.4,0.16885]
[1766735212113,0.00505706,2965.2,2963.4,0.16885]
[1766735212306,0.92998641,2965.1,2963.4,0.16885]
[1766735212506,6.28205706,2965.2,2963.4,0.16885]
[1766735212806,0.9300585,2965.1,2963.4,0.16885]
[1766735213005,6.28205706,2965.2,2963.4,0.16885]
[1766735213201,0.93005855,2965.1,2963.4,0.16885]
[1766735213404,0.00505706,2965.2,2963.4,0.16885]
[1766735213605,0.93013678,2965.1,2963.4,0.16885]
[1766735213806,6.28105706,2965.2,2963.4,0.16885]
[1766735214005,0.93013691,2965.1,2963.4,0.16885]
[1766735214208,6.28105706,2965.2,2963.4,0.16885]
[1766735216915,6.273,2965.1,2963.4,0.16885]
[1766735217108,0.00505706,2965.2,2963.3,0.00249965]
[1766735217510,0.00505706,2965.2,2963.4,3.61765731]
[1766735218017,0.00505706,2965.2,2964.0,0.16882]
[1766735218211,0.00258309,2965.5,2964.0,0.16882]
[1766735219212,0.00505706,2965.0,2964.0,0.16882]
[1766735219405,0.00258309,2965.5,2964.5,0.00505706]
[1766735220410,0.00505706,2965.3,2964.5,0.00505706]
[1766735222817,0.12074502,2965.9,2964.5,0.00505706]
[1766735223013,3.266,2966.8,2964.8,0.16877]
[1766735223211,1.20092117,2967.5,2964.9,0.16877]
[1766735223421,6.266,2967.0,2964.9,0.16877]
[1766735223623,0.00505706,2965.8,2964.9,0.16877]
[1766735223820,6.266,2967.0,2964.9,0.16877]
[1766735224719,0.00505706,2965.8,2964.9,0.16877]
[1766735225422,1.47004898,2966.2,2964.9,0.16877]
[1766735226425,0.00505706,2965.8,2964.9,0.16877]
[1766735228216,1.47004898,2966.2,2964.9,0.16877]
[1766735229111,0.00337138,2965.8,2964.9,0.16877]
[1766735229413,1.47004898,2966.2,2964.9,0.16877]
[1766735244032,1.47004898,2966.2,2965.1,0.79426279]
[1766735246933,1.46056275,2967.2,2965.7,0.79426279]
[1766735247137,0.00505706,2966.7,2965.5,0.16873]
[1766735247840,0.00814405,2966.7,2965.5,0.17156672]
[1766735248244,0.00814405,2966.7,2965.8,0.00505706]
[1766735248537,0.00814405,2966.7,2965.5,0.17156672]
[1766735249332,0.00814405,2966.7,2965.5,0.00283672]
[1766735249639,0.00814405,2966.7,2965.0,1.2434776]
[1766735250844,0.79426279,2966.1,2964.3,0.1688]
[1766735251142,6.256,2966.0,2964.3,0.1688]
[1766735251542,6.256,2966.0,2964.9,0.00505706]
[1766735251739,6.256,2966.0,2964.9,0.00923134]
[1766735251943,0.79501911,2965.6,2964.3,0.1688]
[1766735252635,0.79501911,2965.9,2964.4,0.79501911]
[1766735252835,0.79501911,2965.9,2964.9,0.00505706]
[1766735255945,7.05101911,2966.0,2964.9,0.00505706]
[1766735256139,0.16866,2966.9,2965.3,0.79501911]
[1766735256345,1.46387877,2966.8,2965.6,0.79501911]
[1766735256547,1.46387877,2966.8,2964.9,0.00505706]
[1766735256548,1.068,2966.8,2965.3,0.79501911]
[1766735257944,2.55673911,2966.8,2965.3,0.79501911]
[1766735258246,0.79501911,2966.6,2965.3,0.79501911]
[1766735259145,0.79501911,2966.6,2965.0,0.79501911]
[1766735259349,0.79501911,2966.3,2965.0,0.79501911]
[1766735260049,2.54738807,2966.8,2964.9,0.00505706]
[1766735260251,2.51446749,2966.8,2964.9,0.00505706]
[1766735260442,2.68312749,2966.8,2964.9,0.00505706]
[1766735261040,0.17681405,2966.7,2964.9,0.00505706]
[1766735261744,6.286,2966.6,2964.9,0.00505706]
[1766735262048,6.286,2966.5,2964.9,0.00505706]
[1766735263047,0.17681405,2966.7,2964.9,0.00505706]
[1766735263244,6.285,2966.6,2964.9,0.00505706]